bitfinex/quotes_ETHUSD_20250625
["timestamp","ask_amount","ask_price","bid_price","bid_amount"]
[1750839196008,6.649,2442.9,2442.5,4.09415295]
[1750839196298,10.0,2442.8,2442.5,4.09415295]
[1750839196684,10.0,2442.8,2442.4,4.89226371]
[1750839196875,10.0,2442.8,2442.5,4.09415267]
[1750839197076,10.0,2442.9,2442.5,4.09415267]
[1750839197278,6.649,2442.8,2442.5,4.09415267]
[1750839200035,6.649,2442.8,2442.4,4.89225947]
[1750839200303,6.649,2442.8,2442.5,4.09416468]
[1750839201003,6.649,2442.8,2442.4,4.89220268]
[1750839202401,14.0938581,2442.7,2442.2,4.84816323]
[1750839202600,10.0,2442.7,2442.3,4.09448626]
[1750839203293,10.0,2442.7,2442.2,0.7536]
[1750839203294,14.09358685,2442.9,2442.4,4.09432049]
[1750839203500,10.0,2442.7,2442.4,4.09432049]
[1750839204004,10.0,2442.7,2442.5,4.87137293]
[1750839205288,10.0,2442.7,2442.5,0.7773]
[1750839205497,10.0,2442.7,2442.3,4.89063521]
[1750839206988,14.09383379,2442.7,2442.3,0.7963]
[1750839207222,16.57726768,2442.7,2442.3,0.7963]
[1750839207597,16.57726768,2442.7,2442.3,4.89078123]
[1750839207915,16.57726768,2442.7,2442.3,0.7963]
[1750839208624,23.22426768,2442.7,2442.3,0.7963]
[1750839209315,23.22426768,2442.7,2442.3,4.89079214]
[1750839209943,19.13043389,2442.7,2442.3,4.89079214]
[1750839210236,19.13043389,2442.7,2442.4,4.09426394]
[1750839211132,19.13043389,2442.7,2442.3,4.89070551]
[1750839211340,19.13043389,2442.7,2442.4,4.09432952]
[1750839212343,16.647,2442.7,2442.4,4.09432952]
[1750839213533,16.647,2442.7,2442.5,4.09416024]
[1750839214233,10.0,2442.8,2442.5,4.09416024]
[1750839214537,6.646,2442.7,2442.4,4.09424454]
[1750839217004,6.646,2442.7,2442.3,4.89070502]
[1750839218713,7.4649,2442.7,2442.3,4.09440502]
[1750839219624,7.4649,2442.7,2442.4,4.09433275]
[1750839220743,5.80538299,2443.0,2442.1,0.7599]
[1750839220744,0.7783,2442.9,2442.1,4.85473638]
[1750839220951,6.645,2442.8,2442.5,4.0940818]
[1750839221520,6.645,2442.8,2442.2,0.48547364]
[1750839221521,16.645,2442.8,2442.4,4.09423779]
[1750839221845,16.645,2442.7,2442.3,4.09442359]
[1750839222054,16.645,2442.7,2442.4,4.09432484]
[1750839222540,10.0,2442.6,2442.4,4.09432484]
[1750839223433,0.7783,2442.9,2442.4,4.96174566]
[1750839223626,10.0,2442.9,2442.5,4.09409396]
[1750839223827,16.645,2442.9,2442.5,4.09409396]
[1750839224342,16.645,2442.9,2442.4,1.62642949]
[1750839224548,20.73850151,2442.9,2442.4,5.72067672]
[1750839224914,6.645,2442.8,2442.6,4.09392865]
[1750839225120,10.0,2442.7,2442.5,4.09407371]
[1750839225530,10.0,2442.7,2442.6,4.09399819]
[1750839225726,10.0,2442.7,2442.5,4.09408084]
[1750839226130,4.09334446,2443.0,2442.5,4.09408084]
[1750839226335,0.7734,2443.1,2442.5,5.07564019]
[1750839226652,0.7734,2443.1,2442.4,0.759]
[1750839226653,6.645,2443.1,2442.8,4.09359299]
[1750839227553,10.0,2443.0,2442.7,4.09373789]
[1750839230153,10.0,2443.0,2442.8,4.09364648]
[1750839230651,14.88122192,2443.3,2442.8,4.09364648]
[1750839230842,16.644,2443.2,2442.8,4.09364648]
[1750839231946,16.643,2443.2,2442.9,0.8085]
[1750839234256,20.73600298,2443.2,2442.9,0.8085]
[1750839234639,10.0,2443.0,2442.7,0.769]
[1750839234837,10.0,2443.0,2442.6,4.09395016]
[1750839235030,0.7551,2443.1,2442.7,4.09382456]
[1750839235539,0.7551,2443.1,2442.8,4.09360574]
[1750839235540,10.0,2443.1,2442.8,4.09360574]
[1750839235942,10.0,2443.1,2442.8,4.0936533]
[1750839236777,10.0,2443.1,2442.9,4.85821455]
[1750839238857,10.0,2443.1,2442.9,0.7648]
[1750839239157,10.0,2443.1,2442.7,4.92394131]
[1750839241570,16.642,2443.1,2442.7,4.92394131]
[1750839241768,23.29459579,2443.1,2442.6,4.09390759]
[1750839242959,23.29461122,2443.1,2442.6,4.09390759]
[1750839243354,4.09335155,2443.0,2442.6,4.09390759]
[1750839243869,19.20137474,2443.1,2442.7,4.09380888]
[1750839244171,19.20137474,2443.1,2442.6,4.09390759]
[1750839244938,19.20037474,2443.1,2442.7,4.09372798]
[1750839249076,10.0,2443.2,2442.9,4.093423]
[1750839249282,6.641,2443.2,2442.9,0.7945]
[1750839249446,6.641,2443.2,2442.9,4.88797059]
[1750839250076,6.641,2443.2,2442.9,0.7945]
[1750839250378,10.73405171,2443.2,2442.7,4.90854179]
[1750839250578,11.56545171,2443.2,2442.7,4.90854179]
[1750839251779,11.56545171,2443.2,2442.7,5.8087944]
[1750839252775,10.0,2442.9,2442.6,4.09392494]
[1750839253571,10.0,2443.0,2442.6,4.09392494]
[1750839254054,4.87045082,2443.1,2442.5,4.09415976]
[1750839254055,10.7772,2443.1,2442.7,4.0938209]
[1750839254378,10.0,2443.1,2442.8,4.09364441]
[1750839254779,16.64,2443.2,2442.8,4.09364441]
[1750839256551,6.53099851,2443.1,2442.7,4.0937441]
[1750839257390,6.53099851,2443.1,2442.8,4.09365998]
[1750839257553,10.0,2443.2,2442.8,4.093663]
[1750839257748,0.30520112,2443.5,2443.1,4.09316032]
[1750839257947,7.29609851,2443.7,2443.1,4.0929933]
[1750839257948,0.7651,2443.7,2443.1,4.0929933]
[1750839258174,18.02220085,2443.9,2443.4,4.09262288]
[1750839258371,7.29029851,2443.9,2443.3,4.09279097]
[1750839258586,15.64846405,2443.9,2443.3,4.09279097]
[1750839258756,15.64846405,2443.9,2443.4,4.09252457]
[1750839258953,15.96131968,2443.9,2443.4,4.09252457]
[1750839259161,8.56201968,2443.9,2443.6,4.09223311]
[1750839259785,10.0,2443.8,2443.6,4.09223311]
[1750839260596,10.0,2443.8,2443.5,4.84521282]
[1750839260759,10.0,2443.8,2443.6,4.09228032]
[1750839260959,10.0,2443.8,2443.5,4.84521514]
[1750839261489,0.31285563,2443.9,2443.7,4.09215533]
[1750839261654,17.53393549,2444.1,2443.6,4.09222986]
[1750839261855,21.62544615,2444.1,2443.6,4.09222986]
[1750839262064,10.0,2443.9,2443.5,4.84520274]
[1750839262862,10.30447392,2443.9,2443.5,4.09240274]
[1750839263091,10.30447392,2443.9,2443.4,4.09264297]
[1750839263092,0.30447392,2443.9,2443.8,4.87288788]
[1750839263291,10.0,2444.4,2443.9,4.09182045]
[1750839263507,10.0,2444.4,2443.9,4.09165889]
[1750839263672,6.73515099,2444.5,2444.0,4.0915998]
[1750839263996,10.0,2444.4,2444.2,4.09129727]
[1750839264209,6.84002245,2444.5,2444.2,4.86020666]
[1750839264709,0.30902394,2444.5,2444.3,4.0911366]
[1750839264899,18.06061967,2444.8,2444.3,4.0911366]
[1750839265101,4.09049745,2444.7,2444.2,0.769]
[1750839265303,4.09055879,2444.7,2444.2,4.86030926]
[1750839265483,10.0,2444.6,2444.2,4.86030926]
[1750839266225,4.09066906,2444.6,2444.2,0.769]
[1750839266392,10.0,2444.4,2443.9,7.407]
[1750839266596,10.0,2444.4,2444.0,4.09162278]
[1750839267569,14.09112942,2444.4,2443.9,11.49876102]
[1750839267776,16.53099851,2444.2,2443.9,0.769]
[1750839267976,23.00818369,2444.2,2443.7,6.56806919]
[1750839268379,23.00818369,2444.2,2443.3,4.09268188]
[1750839268380,16.53099851,2443.9,2443.5,6.56847614]
[1750839269516,16.83170685,2443.9,2443.5,6.56847614]
[1750839270914,20.92354249,2443.9,2443.5,2.476]
[1750839271105,21.96682092,2443.9,2443.5,2.476]
[1750839271421,17.87498528,2443.9,2443.5,2.476]
[1750839271617,21.96688609,2443.9,2443.5,1.707]
[1750839272482,17.87498528,2443.9,2443.5,5.79946844]
[1750839273023,16.83170685,2443.9,2443.6,4.09228593]
[1750839274119,16.83170685,2443.9,2443.5,5.79941451]
[1750839274719,20.92353398,2443.9,2443.5,1.707]
[1750839275737,16.83170685,2443.9,2443.5,5.79947637]
[1750839276015,10.8238,2444.3,2443.9,4.09174408]
[1750839276255,10.0,2444.3,2443.9,4.09174408]
[1750839276420,10.0,2444.3,2444.0,4.09164692]
[1750839277194,10.0,2444.3,2443.9,4.09172896]
[1750839278532,10.0,2444.0,2443.8,6.636]
[1750839278822,10.0,2444.0,2443.8,10.72793014]
[1750839279053,10.72704548,2444.4,2443.8,10.72793014]
[1750839279054,7.35479851,2444.5,2443.9,0.7606]
[1750839279193,0.30840122,2444.3,2444.2,4.09131822]
[1750839279395,6.73235884,2444.7,2444.3,4.09115084]
[1750839279616,6.53099851,2444.7,2444.5,4.09079953]
[1750839279826,10.0,2444.6,2444.5,4.09079953]
[1750839280028,10.0,2444.6,2444.3,0.7606]
[1750839280227,6.53099851,2444.4,2444.3,4.09107334]
[1750839280430,6.53099851,2444.4,2444.2,10.72723158]
[1750839280932,16.53099851,2444.4,2444.3,4.09115084]
[1750839281133,10.0,2444.3,2444.2,10.7272509]
[1750839281506,10.0,2444.3,2444.2,6.636]
[1750839282230,10.0,2444.3,2444.2,10.72731822]
[1750839283032,10.0,2444.3,2444.2,12.37989653]
[1750839283233,10.0,2444.3,2444.2,13.16729653]
[1750839283444,16.83234039,2444.6,2444.3,4.09103786]
[1750839283602,16.53099851,2444.6,2444.3,4.09103786]
[1750839285661,16.53099851,2444.6,2444.2,6.636]
[1750839285860,6.53099851,2444.3,2444.2,6.636]
[1750839286357,6.53099851,2444.3,2444.2,10.72731822]
[1750839288363,6.53099851,2444.3,2444.2,4.09131822]
[1750839289360,6.53099851,2444.3,2441.5,1.44260733]
[1750839289361,0.7667,2444.2,2443.5,0.7943]
[1750839289528,10.7667,2444.2,2443.9,4.09179158]
[1750839291165,10.0,2444.2,2443.9,4.89889158]
[1750839291665,10.0,2444.2,2444.0,4.09160388]
[1750839292245,10.0,2444.2,2444.0,4.99065547]
[1750839292855,10.0,2444.2,2444.1,4.09148561]
[1750839300274,10.0,2444.2,2444.0,7.54105159]
[1750839300474,10.0,2444.2,2444.1,4.09148561]
[1750839303268,10.0,2444.4,2444.3,4.09109411]
[1750839303662,10.0,2444.4,2444.2,4.8478223]
[1750839304374,10.0,2444.4,2444.3,4.09115084]
[1750839308359,10.0,2444.4,2444.3,10.72615084]
[1750839310981,10.0,2444.5,2444.4,4.09090397]
[1750839313179,0.7793,2445.7,2444.5,0.7825]
[1750839313369,7.31029851,2445.7,2445.3,4.08935292]
[1750839313566,7.51213752,2445.7,2445.4,4.08927826]
[1750839313866,6.53099851,2445.7,2445.5,4.08906013]
[1750839314255,3.15968986,2445.9,2445.7,4.08872583]
[1750839314256,8.91138837,2445.9,2445.7,4.08872583]
[1750839314575,7.31029851,2446.1,2445.9,4.08847459]
[1750839314744,17.31029851,2446.1,2446.0,4.08830744]
[1750839315146,1.09128345,2446.1,2446.0,4.08830744]
[1750839315356,0.31198345,2446.1,2446.0,4.08830744]
[1750839315583,6.53099851,2446.2,2446.0,4.08830744]
[1750839315756,6.53099851,2446.2,2445.9,4.08838822]
[1750839315757,10.0,2446.1,2445.9,4.08838822]
[1750839316083,6.53099851,2446.2,2445.8,4.08855302]
[1750839316378,10.0,2446.1,2445.7,10.74580233]
[1750839316584,6.53099851,2446.2,2445.7,10.74580233]
[1750839316951,10.0,2445.8,2445.6,0.7825]
[1750839317150,10.0,2445.8,2445.4,6.655]
[1750839317371,2.24322184,2446.2,2445.4,6.655]
[1750839317679,10.0,2445.8,2445.5,4.87773382]
[1750839317981,6.53099851,2445.9,2445.5,4.87773382]
[1750839317982,10.61939465,2446.0,2445.5,4.87773382]
[1750839318187,10.0,2445.9,2445.5,4.87771319]
[1750839318387,10.0,2445.9,2445.6,4.08896495]
[1750839318886,10.0,2445.9,2445.7,4.08865757]
[1750839319264,10.0,2445.9,2445.6,1.1532565]
[1750839319460,10.0,2445.9,2445.7,4.08872671]
[1750839319671,10.0,2445.9,2445.7,4.08880263]
[1750839320185,10.0,2445.9,2445.6,5.24214771]
[1750839320883,10.0,2445.9,2445.7,10.75277485]
[1750839321081,10.0,2445.9,2445.7,12.43114699]
[1750839321985,10.0,2445.9,2445.8,4.08864175]
[1750839323791,10.0,2445.9,2445.8,4.85704175]
[1750839324695,6.53099851,2446.3,2446.2,4.08797318]
[1750839325078,16.53099851,2446.3,2446.2,4.08797318]
[1750839325285,16.53099851,2446.3,2446.2,5.1625705]
[1750839325599,10.0,2446.3,2446.2,5.1625705]
[1750839333106,10.0,2446.3,2446.2,5.9682705]
[1750839334505,10.0,2446.3,2446.2,12.6212705]
[1750839335007,6.53099851,2447.1,2446.9,4.08667648]
[1750839335204,10.0,2447.0,2446.9,4.08667648]
[1750839335608,10.7601,2447.2,2447.0,4.08656062]
[1750839335778,0.20098343,2447.3,2447.1,4.08646969]
[1750839335982,17.34819851,2447.4,2447.1,4.08646969]
[1750839336597,17.34819851,2447.4,2446.8,8.369]
[1750839336779,17.34819851,2447.4,2447.1,4.08643832]
[1750839336974,16.53099851,2447.4,2447.1,4.08643832]
[1750839337180,0.7690589,2447.9,2447.1,4.08643832]
[1750839337181,6.53099851,2447.5,2447.2,4.83801786]
[1750839337533,6.53099851,2447.5,2447.3,5.80310615]
[1750839337686,6.53099851,2447.5,2447.3,1.717]
[1750839338100,6.53099851,2447.5,2447.3,5.80312096]
[1750839338411,6.53099851,2447.5,2447.4,4.08596878]
[1750839338911,6.53099851,2447.5,2447.3,5.80304622]
[1750839339204,6.53099851,2447.5,2447.3,1.717]
[1750839339383,10.0,2447.4,2447.3,5.80306016]
[1750839340497,10.0,2447.4,2447.3,7.53256789]
[1750839341012,10.0,2447.4,2446.9,0.91887]
[1750839341013,0.7765,2447.3,2447.0,1.717]
[1750839341345,10.0,2447.0,2446.7,10.73813709]
[1750839341522,16.53099851,2446.8,2446.7,10.73813709]
[1750839341812,16.53099851,2446.8,2446.7,6.651]
[1750839342111,16.53099851,2446.8,2446.7,10.73813777]
[1750839342294,16.53099851,2446.8,2446.7,6.651]
[1750839342493,10.0,2446.7,2446.3,0.7871]
[1750839342693,6.53099851,2446.5,2446.2,4.08785985]
[1750839343013,10.8208,2446.4,2445.8,0.8138]
[1750839343211,16.53099851,2445.9,2445.8,10.74456362]
[1750839343414,10.0,2445.9,2445.8,10.74456362]
[1750839345218,0.8301,2446.1,2445.6,12.47783889]
[1750839345388,0.8301,2446.1,2445.9,4.08846774]
[1750839345725,10.8011,2446.5,2446.1,4.08805658]
[1750839345898,10.8011,2446.5,2446.0,4.08817121]
[1750839346086,10.8011,2446.5,2445.9,11.9488642]
[1750839346286,10.8011,2446.5,2446.0,4.08818896]
[1750839346595,10.8011,2446.5,2446.2,4.08783458]
[1750839347013,0.8011,2446.5,2446.1,4.0881403]
[1750839347212,0.7995,2446.8,2446.2,8.396]
[1750839347414,10.7995,2446.8,2446.3,4.08780607]
[1750839347711,10.7995,2446.8,2446.2,12.48394338]
[1750839347712,10.7995,2446.8,2446.4,4.0876376]
[1750839348116,10.7995,2446.8,2446.3,4.08772067]
[1750839348622,10.7995,2446.8,2446.2,12.48394338]
[1750839348623,14.88650924,2446.8,2446.2,12.48388456]
[1750839348918,14.0873332,2446.6,2446.2,8.396]
[1750839349085,10.0,2446.5,2446.2,8.396]
[1750839349499,4.0874835,2446.5,2446.2,8.396]
[1750839349720,10.0,2446.6,2446.1,8.397]
[1750839349721,10.0,2446.3,2446.1,8.397]
[1750839349893,0.7615,2446.4,2446.0,12.48519809]
[1750839350285,0.7615,2446.4,2446.0,8.397]
[1750839350489,10.0,2446.3,2446.0,8.397]
[1750839351089,0.7615,2446.4,2446.0,8.397]
[1750839351296,10.7615,2446.4,2446.0,12.4852275]
[1750839351807,4.8491716,2446.4,2446.0,8.397]
[1750839352523,14.8491716,2446.4,2446.0,8.397]
[1750839352726,14.08789124,2446.3,2445.8,4.08853659]
[1750839353023,15.74286659,2446.4,2445.9,12.48646527]
[1750839353810,4.08781216,2446.3,2445.9,8.398]
[1750839354123,10.0,2446.1,2445.9,8.398]
[1750839354825,10.0,2446.2,2445.9,8.398]
[1750839355120,14.84920944,2446.4,2445.9,12.48645933]
[1750839355322,21.51820944,2446.4,2445.9,12.48645933]
[1750839355698,10.0,2446.2,2445.9,8.398]
[1750839356523,10.0,2446.3,2445.9,12.4863746]
[1750839356892,10.0,2446.2,2445.9,1.726]
[1750839357096,14.08789453,2446.3,2445.9,1.726]
[1750839357408,10.0,2446.1,2445.9,1.726]
[1750839357888,10.0,2446.0,2445.9,1.726]
[1750839358409,14.0880115,2446.2,2445.9,1.726]
[1750839359215,4.08814345,2446.1,2445.9,1.726]
[1750839359415,4.08814345,2446.1,2445.6,4.08891144]
[1750839359416,0.8213,2446.0,2445.6,4.08891144]
[1750839359616,0.8213,2446.0,2445.6,13.38090272]
[1750839360294,0.8213,2446.0,2445.7,4.08880047]
[1750839360493,10.0,2446.2,2445.6,9.29199128]
[1750839360494,0.8203,2446.2,2445.8,4.08861091]
[1750839360718,4.90827352,2446.2,2445.8,4.08861091]
[1750839360923,0.8203,2446.2,2445.8,4.08861091]
[1750839361495,4.90827788,2446.2,2445.7,4.08871661]
[1750839361699,4.90827788,2446.2,2445.8,4.08862127]
[1750839362010,4.90827407,2446.2,2445.8,4.08862127]
[1750839362209,0.8203,2446.2,2445.8,4.08862127]
[1750839363709,4.90830023,2446.2,2445.7,5.91686553]
[1750839364226,10.0,2446.0,2445.7,1.82815122]
[1750839364932,10.0,2445.9,2445.6,2.62499128]
[1750839365137,10.0,2445.9,2445.6,6.7139661]
[1750839365348,14.90835471,2446.2,2445.7,4.08874532]
[1750839366359,10.8203,2446.2,2445.6,6.71387357]
[1750839366637,10.0,2445.7,2445.6,1.726]
[1750839366807,10.0,2445.8,2445.6,1.726]
[1750839367835,14.08865582,2445.8,2445.6,1.726]
[1750839368410,4.08856051,2445.9,2445.2,9.811]
[1750839368411,4.89804305,2445.7,2445.2,22.28757046]
[1750839368835,4.89804305,2445.7,2444.9,0.785]
[1750839368836,0.8092,2445.7,2444.9,0.785]
[1750839369038,0.8092,2445.7,2444.7,4.87539563]
[1750839369039,10.0,2445.1,2444.7,4.87539563]
[1750839369225,4.08981241,2445.1,2444.7,0.785]
[1750839369430,4.08970121,2445.2,2444.7,10.76347864]
[1750839369912,14.08957119,2445.3,2444.8,4.09023919]
[1750839370112,10.0,2445.3,2444.8,4.09017425]
[1750839370430,10.0,2445.3,2444.9,4.09001671]
[1750839370633,10.0,2445.3,2444.9,0.7702]
[1750839370830,10.0,2445.3,2445.0,4.08997361]
[1750839371533,10.0,2445.3,2444.9,4.86027317]
[1750839372138,14.08952249,2445.3,2444.8,4.89070387]
[1750839372717,14.08952249,2445.3,2444.8,4.89064329]
[1750839373117,4.08965106,2445.2,2444.7,10.76342275]
[1750839373338,4.08965106,2445.2,2444.7,12.16671837]
[1750839373647,4.08972399,2445.2,2444.7,10.76346344]
[1750839374910,4.08989198,2445.1,2444.7,6.673]
[1750839376039,4.08982561,2445.1,2444.7,10.76347594]
[1750839376219,4.08982561,2445.1,2444.7,6.673]
[1750839376612,4.08982561,2445.1,2444.7,10.76347711]
[1750839376812,4.08982561,2445.1,2444.7,6.673]
[1750839377135,10.0,2445.0,2444.6,4.84866116]
[1750839377440,10.0,2444.8,2444.5,1.726]
[1750839377640,10.0,2444.9,2444.4,0.8317]
[1750839377837,4.09033097,2444.8,2444.4,0.8317]
[1750839378036,10.0,2444.7,2444.4,0.8317]
[1750839378236,4.09033097,2444.8,2444.4,0.8317]
[1750839378440,14.09048248,2444.7,2444.3,4.09106795]
[1750839378617,14.09048248,2444.7,2444.4,4.09097102]
[1750839378618,10.0,2444.6,2444.4,4.09097102]
[1750839378949,10.0,2444.8,2444.4,4.09097102]
[1750839379439,14.87826588,2445.0,2444.5,4.09081481]
[1750839379840,14.87826588,2445.0,2444.2,19.0361]
[1750839380033,10.0,2444.7,2444.3,4.09107909]
[1750839380343,4.09072858,2444.6,2444.2,19.0361]
[1750839380523,10.7589,2444.6,2444.2,6.64338497]
[1750839380722,0.7589,2444.6,2444.2,6.6433231]
[1750839381414,4.8495534,2444.6,2444.2,6.6433231]
[1750839381614,4.8495534,2444.6,2444.2,1.729]
[1750839381615,7.41084343,2444.6,2444.2,1.729]
[1750839382230,10.0,2444.3,2443.8,0.7711]
[1750839382415,10.0,2444.3,2443.9,4.0917123]
[1750839382815,4.09115873,2444.3,2443.8,0.7711]
[1750839383018,10.0,2444.4,2443.8,4.86302435]
[1750839383316,10.0,2444.4,2444.0,4.09157149]
[1750839383734,10.0,2444.4,2444.1,4.09135569]
[1750839383930,6.674,2444.4,2444.1,4.09135569]
[1750839384631,6.674,2444.4,2444.0,4.09156881]
[1750839384831,10.76500689,2444.4,2443.9,4.09171607]
[1750839385630,10.76499019,2444.4,2443.9,4.09174501]
[1750839385824,10.0,2444.3,2443.8,4.86302192]
[1750839386026,10.0,2444.1,2443.7,4.09206801]
[1750839386231,0.7916,2444.2,2443.6,2.5537]
[1750839386416,0.7916,2444.2,2443.8,4.09189851]
[1750839386617,4.88300462,2444.2,2443.7,4.09207093]
[1750839386822,10.0,2444.1,2443.6,6.64593422]
[1750839387060,14.09158097,2444.1,2443.6,5.82123422]
[1750839387243,14.09158097,2444.1,2443.6,4.09223422]
[1750839387433,14.9592517,2444.1,2443.6,4.09223422]
[1750839387634,10.0,2443.9,2443.6,4.09223422]
[1750839387834,4.0918627,2443.9,2443.4,6.64629103]
[1750839388254,4.8834627,2443.9,2443.4,6.64629103]
[1750839388571,10.7916,2443.9,2443.4,2.5537]
[1750839388721,6.674,2443.8,2443.2,4.91759446]
[1750839388916,10.0,2443.6,2443.2,4.91759446]
[1750839389234,10.0,2443.6,2443.1,4.09304769]
[1750839389235,4.09232712,2443.6,2443.1,4.09304769]
[1750839389558,10.0,2443.4,2443.0,6.65513635]
[1750839389744,0.8154,2443.5,2443.1,4.09313928]
[1750839390159,10.8154,2443.5,2443.1,4.09313928]
[1750839390628,0.8154,2443.5,2443.2,4.09289441]
[1750839390829,0.8154,2443.5,2443.1,4.09314731]
[1750839391028,0.8154,2443.5,2443.2,4.09290712]
[1750839391436,10.8006,2443.7,2443.3,4.09281524]
[1750839391621,11.10688213,2443.7,2443.4,4.09265659]
[1750839391828,10.0,2443.8,2443.5,4.91892615]
[1750839392137,10.0,2443.8,2443.5,4.91899989]
[1750839392858,6.675,2444.0,2443.7,4.09215533]
[1750839393026,6.675,2444.0,2443.8,4.09191395]
[1750839393661,10.0,2444.1,2443.7,4.09206601]
[1750839393871,10.0,2444.1,2443.8,4.09198387]
[1750839394560,10.0,2444.1,2443.7,4.09206134]
[1750839395864,14.0915041,2444.1,2443.6,4.09220667]
[1750839396642,14.0915041,2444.1,2443.6,5.08344994]
[1750839397366,14.0915041,2444.1,2443.7,4.09215444]
[1750839398072,14.0915041,2444.1,2443.6,0.99124327]
[1750839398250,14.0915041,2444.1,2443.6,5.08349211]
[1750839398455,20.7615041,2444.1,2443.6,5.08349211]
[1750839399076,20.7615041,2444.1,2443.6,4.09224884]
[1750839399470,20.7615041,2444.1,2443.5,4.09239395]
[1750839399667,20.7615041,2444.1,2443.6,4.09231691]
[1750839399871,16.67,2444.1,2443.7,4.09206739]
[1750839401074,16.67,2444.1,2443.8,4.09185257]
[1750839402276,10.0,2443.9,2443.7,4.09207208]
[1750839402478,10.0,2443.9,2443.8,4.09198788]
[1750839403777,10.0,2444.1,2443.8,4.85518788]
[1750839404847,10.0,2444.1,2443.8,0.7632]
[1750839405072,6.51220192,2443.9,2443.6,4.85757441]
[1750839405262,6.51220192,2443.9,2443.6,5.92558345]
[1750839405980,16.51220192,2443.9,2443.5,5.82238891]
[1750839406168,10.0,2443.8,2443.5,5.82238891]
[1750839406348,7.29900192,2443.9,2443.5,5.82238891]
[1750839406680,10.0,2443.8,2443.5,1.73]
[1750839406877,10.0,2443.8,2443.5,5.82246811]
[1750839407880,10.0,2443.8,2443.6,4.0922311]
[1750839409585,10.0,2443.8,2443.7,4.09215533]
[1750839410850,10.0,2443.8,2443.5,4.09241206]
[1750839411450,10.0,2443.8,2443.4,4.88092404]
[1750839412270,10.0,2443.8,2443.5,4.09246458]
[1750839412473,10.0,2443.8,2443.4,6.44575828]
[1750839414989,10.0,2443.8,2443.4,2.35318444]
[1750839415183,10.0,2443.8,2443.3,10.76771319]
[1750839415184,10.0,2443.5,2443.3,10.76771319]
[1750839415493,0.7736,2443.4,2442.9,4.09341413]
[1750839415652,10.0,2443.1,2442.9,4.09341413]
[1750839415851,10.0,2443.1,2442.9,5.1620624]
[1750839416163,10.0,2443.1,2442.9,1.06864827]
[1750839416370,10.20835003,2443.1,2442.8,6.59289352]
[1750839417990,10.51347514,2443.1,2442.8,1.724]
[1750839418771,11.32437514,2443.1,2442.8,1.724]
[1750839418975,16.51220192,2442.9,2442.8,1.724]
[1750839422063,16.51220192,2442.9,2442.5,10.75007782]
[1750839422064,10.0,2442.8,2442.5,10.75007782]
[1750839422483,10.0,2442.8,2442.5,4.09407782]
[1750839423297,10.0,2442.8,2442.6,4.09398559]
[1750839424094,16.51220192,2442.9,2442.7,4.09383059]
[1750839424264,10.0,2442.8,2442.6,4.09391028]
[1750839426705,0.51347514,2443.1,2442.9,4.90780782]
[1750839426868,10.0,2443.2,2443.0,4.09328406]
[1750839427075,10.20819308,2443.2,2443.1,4.09316032]
[1750839427402,1.09119507,2443.8,2443.0,4.09328406]
[1750839427403,6.51220192,2443.7,2443.3,4.88712295]
[1750839427581,6.51220192,2443.7,2443.4,4.09253245]
[1750839427781,10.0,2443.6,2443.4,4.09253245]
[1750839428186,10.204748,2443.6,2443.5,4.09249028]
[1750839428385,0.204748,2443.6,2443.3,7.4553]
[1750839428702,10.0,2443.9,2443.4,4.09254716]
[1750839429191,10.0,2443.9,2443.3,12.87527074]
[1750839429577,10.0,2443.9,2443.4,4.09264563]
[1750839429973,10.0,2443.9,2443.3,12.87526313]
[1750839430678,10.0,2443.9,2443.4,4.09263962]
[1750839431475,10.0,2443.9,2443.3,12.87526213]
[1750839431679,10.2055207,2443.9,2443.3,12.87526213]
[1750839431877,10.2055207,2443.9,2443.4,1.86921941]
[1750839432193,10.5161447,2443.9,2443.4,1.86921941]
[1750839432395,10.5161447,2443.9,2443.4,5.96186998]
[1750839433308,10.5161447,2443.9,2443.4,1.86921941]
[1750839433609,10.5161447,2443.9,2443.4,5.96187249]
[1750839434506,10.5161447,2443.9,2443.4,1.86921941]
[1750839435411,10.5161447,2443.9,2443.5,4.09240637]
[1750839435575,10.5161447,2443.9,2443.4,5.96180296]
[1750839435781,14.60803123,2443.9,2443.4,1.86921941]
[1750839435982,10.0,2443.6,2443.3,7.4553]
[1750839437886,10.7882,2443.6,2443.3,6.661]
[1750839439312,10.0,2443.6,2443.3,6.661]
[1750839441188,10.0,2443.6,2443.3,10.75381664]
[1750839443047,10.0,2443.6,2443.2,5.81693042]
[1750839444789,10.0,2443.6,2443.1,10.74515406]
[1750839445591,10.0,2443.6,2443.1,10.74515645]
[1750839445790,10.0,2443.6,2443.2,4.09289373]
[1750839449122,0.50356075,2443.9,2443.5,4.09249028]
[1750839449420,10.0,2443.9,2443.6,4.09230918]
[1750839449618,10.0,2443.9,2443.6,1.56468427]
[1750839449924,10.20800527,2443.9,2443.6,5.65700292]
[1750839450419,16.51311923,2443.7,2443.6,1.56468427]
[1750839451190,10.0,2443.6,2443.5,1.719]
[1750839452629,10.0,2443.6,2443.5,6.654]
[1750839453413,10.0,2443.6,2443.4,5.81164195]
[1750839453802,10.0,2443.6,2443.5,4.09249028]
[1750839454438,10.0,2443.6,2443.5,4.84609028]
[1750839454639,10.0,2443.6,2443.5,6.57716168]
[1750839458034,0.5138383,2443.9,2443.8,4.88758788]
[1750839458035,0.30838062,2443.9,2443.8,4.88758788]
[1750839458352,10.0,2443.9,2443.8,11.53958788]
[1750839458732,10.0,2443.9,2443.8,7.4476]
[1750839459249,10.0,2443.9,2443.8,11.53958788]
[1750839459416,10.0,2443.9,2443.8,9.01076483]
[1750839460539,10.30684398,2443.9,2443.8,9.01076483]
[1750839461157,10.30684398,2443.9,2443.6,6.651]
[1750839461452,10.0,2443.6,2443.4,8.37]
[1750839461658,10.0,2443.6,2443.4,12.46261348]
[1750839462225,10.0,2443.6,2443.5,4.92359028]
[1750839466568,6.51311923,2443.9,2443.8,4.09198788]